[Event "Live Chess"]
[Site "Chess.com"]
[Date "2023.05.20"]
[Round "-"]
[White "Greenbecker"]
[Black "elvenstar"]
[Result "1-0"]
[WhiteElo "1649"]
[BlackElo "1582"]
[TimeControl "300"]
[EndTime "13:55:30 PDT"]
[Termination "Greenbecker won by resignation"]

1. e4 {[%clk 0:04:53.9]} 1... d5 {[%clk 0:04:58.3]} 2. exd5 {[%clk 0:04:50.7]}
2... Nf6 {[%clk 0:04:56.1]} 3. Nf3 {[%clk 0:04:50.1]} 3... e6 {[%clk 0:04:49.5]}
4. Nc3 {[%clk 0:04:49.6]} 4... exd5 {[%clk 0:04:46]} 5. d4 {[%clk 0:04:48.7]}
5... Be6 {[%clk 0:04:44.2]} 6. Bg5 {[%clk 0:04:48]} 6... Be7 {[%clk 0:04:41.7]}
7. Bd3 {[%clk 0:04:47.4]} 7... h6 {[%clk 0:04:38.9]} 8. Bh4 {[%clk 0:04:44.5]}
8... c6 {[%clk 0:04:37.5]} 9. O-O {[%clk 0:04:43]} 9... O-O {[%clk 0:04:35.8]}
10. Re1 {[%clk 0:04:42.2]} 10... Nbd7 {[%clk 0:04:33.7]} 11. Ne5 {[%clk
0:04:40.7]} 11... Re8 {[%clk 0:04:23.1]} 12. Nxd7 {[%clk 0:04:38.9]} 12... Qxd7
{[%clk 0:04:20.5]} 13. Qf3 {[%clk 0:04:36.2]} 13... Bg4 {[%clk 0:04:16.2]} 14.
Qe3 {[%clk 0:04:29.7]} 14... Bd6 {[%clk 0:04:02]} 15. Qd2 {[%clk 0:04:28.1]}
15... Bc7 {[%clk 0:03:53.8]} 16. Bxf6 {[%clk 0:04:25.8]} 16... gxf6 {[%clk
0:03:50.8]} 17. Qxh6 {[%clk 0:04:24.1]} 17... Bf5 {[%clk 0:03:39.6]} 18. Qxf6
{[%clk 0:04:11.9]} 18... Bxd3 {[%clk 0:03:22]} 19. cxd3 {[%clk 0:04:09.6]} 19...
Re6 {[%clk 0:03:06.4]} 20. Rxe6 {[%clk 0:04:03.9]} 20... fxe6 {[%clk 0:03:03.7]}
21. Re1 {[%clk 0:04:00.6]} 21... Re8 {[%clk 0:02:57.6]} 22. Qg5+ {[%clk
0:03:58.2]} 22... Kf7 {[%clk 0:02:54.3]} 23. Re3 {[%clk 0:03:54.5]} 23... Rf8
{[%clk 0:02:32.4]} 24. Rf3+ {[%clk 0:03:51.5]} 24... Ke8 {[%clk 0:02:30.7]} 25.
Qg6+ {[%clk 0:03:47.3]} 1-0

[Event "Live Chess"]
[Site "Chess.com"]
[Date "2023.05.20"]
[Round "-"]
[White "JoeyCage"]
[Black "chrisbradgate"]
[Result "1-0"]
[WhiteElo "2310"]
[BlackElo "863"]
[TimeControl "300"]
[EndTime "13:55:40 PDT"]
[Termination "JoeyCage won by checkmate"]

1. e4 {[%clk 0:04:54.9]} 1... e5 {[%clk 0:04:58.5]} 2. Nf3 {[%clk 0:04:53.6]}
2... Nc6 {[%clk 0:04:57.2]} 3. Bb5 {[%clk 0:04:52.3]} 3... a6 {[%clk 0:04:54.4]}
4. Bxc6 {[%clk 0:04:51.2]} 4... bxc6 {[%clk 0:04:53.8]} 5. d4 {[%clk 0:04:49.6]}
5... exd4 {[%clk 0:04:49.6]} 6. Qxd4 {[%clk 0:04:48.4]} 6... Be7 {[%clk
0:04:38.7]} 7. Qxg7 {[%clk 0:04:44.4]} 7... Bf6 {[%clk 0:04:25.1]} 8. Qg3 {[%clk
0:04:42.6]} 8... Qe7 {[%clk 0:04:13.9]} 9. O-O {[%clk 0:04:39.3]} 9... d6 {[%clk
0:04:02.4]} 10. Re1 {[%clk 0:04:35.9]} 10... Bb7 {[%clk 0:03:51.5]} 11. e5
{[%clk 0:04:34]} 11... O-O-O {[%clk 0:03:28.4]} 12. exf6 {[%clk 0:04:32]} 12...
Qxf6 {[%clk 0:03:24]} 13. Nc3 {[%clk 0:04:30.6]} 13... c5 {[%clk 0:03:21]} 14.
Bg5 {[%clk 0:04:28.4]} 14... Qg7 {[%clk 0:03:11.1]} 15. Bxd8 {[%clk 0:04:26.5]}
15... Qxg3 {[%clk 0:03:09.3]} 16. hxg3 {[%clk 0:04:25.6]} 16... Kxd8 {[%clk
0:03:08.5]} 17. Ng5 {[%clk 0:04:22.9]} 17... Ne7 {[%clk 0:02:59.8]} 18. Nxf7+
{[%clk 0:04:21.2]} 18... Ke8 {[%clk 0:02:50.8]} 19. Nxh8 {[%clk 0:04:19.8]}
19... Kf8 {[%clk 0:02:42.9]} 20. Re2 {[%clk 0:04:14.5]} 20... c6 {[%clk
0:02:36.5]} 21. Rae1 {[%clk 0:04:12.7]} 21... Nf5 {[%clk 0:01:58.4]} 22. g4
{[%clk 0:04:09.5]} 22... Nd4 {[%clk 0:01:54]} 23. Re7 {[%clk 0:04:07.4]} 23...
Nxc2 {[%clk 0:01:32.6]} 24. Rf7+ {[%clk 0:04:05.5]} 24... Kg8 {[%clk 0:01:28.1]}
25. Re8# {[%clk 0:04:05.4]} 1-0

[Event "Live Chess"]
[Site "Chess.com"]
[Date "2023.05.20"]
[Round "-"]
[White "MaximKris"]
[Black "SupremeTactician"]
[Result "0-1"]
[WhiteElo "1855"]
[BlackElo "2378"]
[TimeControl "300"]
[EndTime "13:55:45 PDT"]
[Termination "SupremeTactician won by checkmate"]

1. e4 {[%clk 0:04:58.2]} 1... e5 {[%clk 0:04:59]} 2. Nf3 {[%clk 0:04:56.8]} 2...
Nc6 {[%clk 0:04:58.6]} 3. Bb5 {[%clk 0:04:56.1]} 3... a6 {[%clk 0:04:57.5]} 4.
Bxc6 {[%clk 0:04:54.5]} 4... dxc6 {[%clk 0:04:56.5]} 5. O-O {[%clk 0:04:54.1]}
5... f6 {[%clk 0:04:54.5]} 6. Nc3 {[%clk 0:04:53.6]} 6... Bd6 {[%clk 0:04:53.5]}
7. d3 {[%clk 0:04:53.4]} 7... Ne7 {[%clk 0:04:52.6]} 8. Be3 {[%clk 0:04:53.2]}
8... O-O {[%clk 0:04:51.7]} 9. d4 {[%clk 0:04:52.8]} 9... exd4 {[%clk
0:04:50.2]} 10. Nxd4 {[%clk 0:04:52.4]} 10... Ng6 {[%clk 0:04:49.4]} 11. Qd2
{[%clk 0:04:52.1]} 11... Re8 {[%clk 0:04:48]} 12. Rad1 {[%clk 0:04:50.7]} 12...
Qe7 {[%clk 0:04:46.6]} 13. Nf5 {[%clk 0:04:49.5]} 13... Bxf5 {[%clk 0:04:45.2]}
14. exf5 {[%clk 0:04:49.4]} 14... Ne5 {[%clk 0:04:44.2]} 15. Ne4 {[%clk
0:04:46.2]} 15... Nc4 {[%clk 0:04:40.3]} 16. Nxd6 {[%clk 0:04:25.3]} 16... Nxd2
{[%clk 0:04:35.7]} 17. Nxe8 {[%clk 0:04:25.2]} 17... Nxf1 {[%clk 0:04:34.4]} 18.
Nxf6+ {[%clk 0:04:25.1]} 18... gxf6 {[%clk 0:04:30.8]} 19. Rxf1 {[%clk
0:04:23.9]} 19... Rd8 {[%clk 0:04:29.3]} 20. Re1 {[%clk 0:04:23.8]} 20... Qb4
{[%clk 0:04:25.3]} 21. Rf1 {[%clk 0:04:22]} 21... Qxb2 {[%clk 0:04:23.2]} 22. h3
{[%clk 0:04:21.9]} 22... Qxc2 {[%clk 0:04:22.1]} 23. g3 {[%clk 0:04:21.8]} 23...
b5 {[%clk 0:04:20.9]} 24. Kh2 {[%clk 0:04:21.7]} 24... c5 {[%clk 0:04:20.1]} 25.
Kg2 {[%clk 0:04:21.6]} 25... Qe4+ {[%clk 0:04:18.8]} 26. f3 {[%clk 0:04:20.7]}
26... Qxe3 {[%clk 0:04:17.8]} 27. g4 {[%clk 0:04:20.6]} 27... Rd2+ {[%clk
0:04:16.7]} 28. Kg3 {[%clk 0:04:20.5]} 28... Qe5+ {[%clk 0:04:15.9]} 29. f4
{[%clk 0:04:19.5]} 29... Qe3+ {[%clk 0:04:15.1]} 30. Kh4 {[%clk 0:04:19.4]}
30... Rh2 {[%clk 0:04:13]} 31. g5 {[%clk 0:04:19.3]} 31... Qxh3# {[%clk
0:04:11.7]} 0-1

[Event "Live Chess"]
[Site "Chess.com"]
[Date "2023.05.20"]
[Round "-"]
[White "KGreenGator"]
[Black "Long1968"]
[Result "1-0"]
[WhiteElo "1771"]
[BlackElo "1074"]
[TimeControl "300"]
[EndTime "13:55:47 PDT"]
[Termination "KGreenGator won on time"]

1. c4 {[%clk 0:04:59.2]} 1... e5 {[%clk 0:04:56.2]} 2. Nc3 {[%clk 0:04:58.8]}
2... b5 {[%clk 0:04:53.6]} 3. Nxb5 {[%clk 0:04:57.3]} 3... c6 {[%clk 0:04:51.5]}
4. Nc3 {[%clk 0:04:56.2]} 4... d5 {[%clk 0:04:48.8]} 5. cxd5 {[%clk 0:04:54.8]}
5... cxd5 {[%clk 0:04:46.6]} 6. d4 {[%clk 0:04:53.7]} 6... e4 {[%clk 0:04:43]}
7. e3 {[%clk 0:04:52.5]} 7... Nf6 {[%clk 0:04:32]} 8. Qb3 {[%clk 0:04:47.7]}
8... Qa5 {[%clk 0:04:00.1]} 9. Bb5+ {[%clk 0:04:42]} 9... Bd7 {[%clk 0:03:47.1]}
10. Bxd7+ {[%clk 0:04:40.3]} 10... Nbxd7 {[%clk 0:03:44]} 11. Ne2 {[%clk
0:04:37.8]} 11... Rb8 {[%clk 0:03:29.8]} 12. Qc2 {[%clk 0:04:35.7]} 12... Bb4
{[%clk 0:03:13.7]} 13. Bd2 {[%clk 0:04:34.4]} 13... O-O {[%clk 0:03:04.4]} 14.
O-O {[%clk 0:04:32.6]} 14... Rfc8 {[%clk 0:02:42.1]} 15. Rfc1 {[%clk 0:04:29.5]}
15... Nb6 {[%clk 0:02:23.7]} 16. a3 {[%clk 0:04:15.3]} 16... Bxc3 {[%clk
0:02:14.1]} 17. Bxc3 {[%clk 0:04:14]} 17... Qa6 {[%clk 0:01:45.4]} 18. Qd2
{[%clk 0:04:09.9]} 18... Nc4 {[%clk 0:01:37.4]} 19. Qe1 {[%clk 0:04:06.4]} 19...
Rb7 {[%clk 0:01:16.3]} 20. b4 {[%clk 0:04:00.2]} 20... Rbc7 {[%clk 0:00:31.9]}
21. h3 {[%clk 0:03:56]} 21... Qb6 {[%clk 0:00:15.4]} 22. a4 {[%clk 0:03:52.2]}
22... Nd6 {[%clk 0:00:08.2]} 23. Bb2 {[%clk 0:03:48.5]} 1-0

[Event "Live Chess"]
[Site "Chess.com"]
[Date "2023.05.20"]
[Round "-"]
[White "Conradical12"]
[Black "lordjimvi"]
[Result "1-0"]
[WhiteElo "1569"]
[BlackElo "391"]
[TimeControl "300"]
[EndTime "13:55:50 PDT"]
[Termination "Conradical12 won by resignation"]

1. e4 {[%clk 0:04:58.2]} 1... d5 {[%clk 0:04:54.7]} 2. exd5 {[%clk 0:04:56.8]}
2... Qxd5 {[%clk 0:04:53.5]} 3. Nc3 {[%clk 0:04:56.4]} 3... Qe6+ {[%clk
0:04:52.4]} 4. Be2 {[%clk 0:04:54.4]} 4... Nf6 {[%clk 0:04:49.3]} 5. Nf3 {[%clk
0:04:52.9]} 5... Ng4 {[%clk 0:04:47.8]} 6. Nb5 {[%clk 0:04:51.5]} 6... Qd7
{[%clk 0:04:43.6]} 7. O-O {[%clk 0:04:48.3]} 7... c6 {[%clk 0:04:42.3]} 8. Nbd4
{[%clk 0:04:45.1]} 8... Nf6 {[%clk 0:04:39.5]} 9. c3 {[%clk 0:04:42.6]} 9... c5
{[%clk 0:04:38.8]} 10. Bb5 {[%clk 0:04:38.8]} 10... Nc6 {[%clk 0:04:35.6]} 11.
Ne5 {[%clk 0:04:36.6]} 11... a6 {[%clk 0:04:32.5]} 12. Nxd7 {[%clk 0:04:34.8]}
1-0

[Event "Live Chess"]
[Site "Chess.com"]
[Date "2023.05.20"]
[Round "-"]
[White "EdenHazard8"]
[Black "domrobson"]
[Result "1-0"]
[WhiteElo "2068"]
[BlackElo "1779"]
[TimeControl "300"]
[EndTime "13:56:04 PDT"]
[Termination "EdenHazard8 won by resignation"]

1. e4 {[%clk 0:04:59.2]} 1... e5 {[%clk 0:04:58.6]} 2. Nf3 {[%clk 0:04:58.7]}
2... Nc6 {[%clk 0:04:56.9]} 3. Bc4 {[%clk 0:04:58.3]} 3... Nf6 {[%clk
0:04:55.7]} 4. Ng5 {[%clk 0:04:57.9]} 4... d5 {[%clk 0:04:53.2]} 5. exd5 {[%clk
0:04:57.8]} 5... Na5 {[%clk 0:04:52]} 6. Bb5+ {[%clk 0:04:57.7]} 6... Bd7 {[%clk
0:04:51]} 7. Bxd7+ {[%clk 0:04:56.6]} 7... Qxd7 {[%clk 0:04:50]} 8. Nc3 {[%clk
0:04:53.5]} 8... Nxd5 {[%clk 0:04:48.1]} 9. O-O {[%clk 0:04:43.5]} 9... O-O-O
{[%clk 0:04:43.8]} 10. Re1 {[%clk 0:04:41.6]} 10... f6 {[%clk 0:04:42]} 11. Nf3
{[%clk 0:04:38.3]} 11... g5 {[%clk 0:04:38.7]} 12. Ne4 {[%clk 0:04:35.8]} 12...
Bg7 {[%clk 0:04:22.2]} 13. d3 {[%clk 0:04:29.2]} 13... h6 {[%clk 0:04:19.4]} 14.
c4 {[%clk 0:04:16.6]} 14... Nf4 {[%clk 0:04:17.1]} 15. Bxf4 {[%clk 0:04:15.1]}
15... gxf4 {[%clk 0:04:15.3]} 16. Nc5 {[%clk 0:04:12.9]} 16... Qd6 {[%clk
0:04:07.2]} 17. b4 {[%clk 0:04:11.8]} 17... Nc6 {[%clk 0:04:05.2]} 18. a3 {[%clk
0:04:08.7]} 18... f5 {[%clk 0:03:58.4]} 19. Nh4 {[%clk 0:04:07.5]} 19... Rhf8
{[%clk 0:03:43]} 20. Qh5 {[%clk 0:04:05.7]} 20... b6 {[%clk 0:03:24.6]} 21. Nxf5
{[%clk 0:04:02.9]} 21... Rxf5 {[%clk 0:03:19.2]} 22. Qxf5+ {[%clk 0:04:01.4]}
22... Kb8 {[%clk 0:03:15.7]} 23. Ne6 {[%clk 0:04:00.5]} 1-0

[Event "Live Chess"]
[Site "Chess.com"]
[Date "2023.05.20"]
[Round "-"]
[White "Pandreq"]
[Black "Brooms1989"]
[Result "0-1"]
[WhiteElo "1261"]
[BlackElo "1031"]
[TimeControl "300"]
[EndTime "13:56:04 PDT"]
[Termination "Brooms1989 won by checkmate"]

1. d4 {[%clk 0:04:57.8]} 1... Nf6 {[%clk 0:04:58.3]} 2. c4 {[%clk 0:04:56.5]}
2... g6 {[%clk 0:04:56.8]} 3. Nc3 {[%clk 0:04:55.2]} 3... Bg7 {[%clk 0:04:54]}
4. Bg5 {[%clk 0:04:54.2]} 4... O-O {[%clk 0:04:52.1]} 5. e3 {[%clk 0:04:53.2]}
5... h6 {[%clk 0:04:50.1]} 6. Bh4 {[%clk 0:04:51.9]} 6... d6 {[%clk 0:04:48.6]}
7. b4 {[%clk 0:04:49.6]} 7... c5 {[%clk 0:04:40.3]} 8. bxc5 {[%clk 0:04:48.4]}
8... dxc5 {[%clk 0:04:39.8]} 9. d5 {[%clk 0:04:46]} 9... Qa5 {[%clk 0:04:31.6]}
10. Qc1 {[%clk 0:04:38.2]} 10... Ne4 {[%clk 0:04:28.5]} 11. Bxe7 {[%clk
0:04:25]} 11... Bxc3+ {[%clk 0:04:19.5]} 12. Kd1 {[%clk 0:04:16.7]} 12... Re8
{[%clk 0:04:14.7]} 13. Rb1 {[%clk 0:03:50.5]} 13... Nxf2+ {[%clk 0:04:06]} 14.
Ke2 {[%clk 0:03:48.9]} 14... Nxh1 {[%clk 0:04:02.2]} 15. d6 {[%clk 0:03:45.7]}
15... Qxa2+ {[%clk 0:03:54.9]} 16. Kd1 {[%clk 0:03:29.3]} 16... Nf2# {[%clk
0:03:49]} 0-1

[Event "Live Chess"]
[Site "Chess.com"]
[Date "2023.05.20"]
[Round "-"]
[White "Singapourfeuj"]
[Black "Jeffaroow"]
[Result "1-0"]
[WhiteElo "2243"]
[BlackElo "468"]
[TimeControl "300"]
[EndTime "13:56:06 PDT"]
[Termination "Singapourfeuj won by resignation"]

1. d4 {[%clk 0:04:57.8]} 1... d5 {[%clk 0:04:43.3]} 2. c4 {[%clk 0:04:56.3]}
2... Nf6 {[%clk 0:04:40.6]} 3. Nf3 {[%clk 0:04:54.7]} 3... c6 {[%clk 0:04:39.3]}
4. Nc3 {[%clk 0:04:52.9]} 4... Be6 {[%clk 0:04:36.4]} 5. cxd5 {[%clk 0:04:51]}
5... Nxd5 {[%clk 0:04:34]} 6. e4 {[%clk 0:04:49.2]} 6... Nxc3 {[%clk 0:04:32.2]}
7. bxc3 {[%clk 0:04:48.4]} 7... Na6 {[%clk 0:04:20.9]} 8. Be3 {[%clk 0:04:46.6]}
8... g6 {[%clk 0:04:16.1]} 9. Be2 {[%clk 0:04:45.2]} 9... Bg7 {[%clk 0:04:14.7]}
10. Ng5 {[%clk 0:04:44]} 10... Bc8 {[%clk 0:03:57]} 11. O-O {[%clk 0:04:34.9]}
11... O-O {[%clk 0:03:55]} 12. e5 {[%clk 0:04:33.8]} 12... c5 {[%clk 0:03:49.8]}
13. Bc4 {[%clk 0:04:31.7]} 13... e6 {[%clk 0:03:37.8]} 14. Ne4 {[%clk
0:04:29.4]} 14... cxd4 {[%clk 0:03:31.5]} 15. cxd4 {[%clk 0:04:28.4]} 15... Nb4
{[%clk 0:03:25.2]} 16. Bg5 {[%clk 0:04:24]} 16... Qb6 {[%clk 0:03:11.6]} 17. Rb1
{[%clk 0:04:20.7]} 17... Rd8 {[%clk 0:02:59.6]} 18. Bxd8 {[%clk 0:04:18.4]}
18... Qxd8 {[%clk 0:02:57.3]} 19. Rxb4 {[%clk 0:04:17.1]} 19... f5 {[%clk
0:02:45.8]} 20. exf6 {[%clk 0:04:15.6]} 20... Bxf6 {[%clk 0:02:45.3]} 21. Nxf6+
{[%clk 0:04:14.6]} 21... Qxf6 {[%clk 0:02:44.4]} 22. d5 {[%clk 0:04:13.7]} 22...
exd5 {[%clk 0:02:42.9]} 23. Qxd5+ {[%clk 0:04:12.4]} 23... Kh8 {[%clk
0:02:41.2]} 24. Re1 {[%clk 0:04:11.1]} 24... Be6 {[%clk 0:02:36]} 25. Rxe6
{[%clk 0:04:07.7]} 25... Qa1+ {[%clk 0:02:34]} 26. Bf1 {[%clk 0:04:06.7]} 26...
Rc8 {[%clk 0:02:30.7]} 27. Rbe4 {[%clk 0:04:05.1]} 27... Kg7 {[%clk 0:02:23.3]}
28. Qe5+ {[%clk 0:04:02.4]} 28... Kh6 {[%clk 0:02:20.7]} 29. Qxa1 {[%clk
0:04:00.9]} 1-0

[Event "Live Chess"]
[Site "Chess.com"]
[Date "2023.05.20"]
[Round "-"]
[White "Richardallis"]
[Black "Shepherds_Pie"]
[Result "0-1"]
[WhiteElo "1865"]
[BlackElo "1926"]
[TimeControl "300"]
[EndTime "13:56:08 PDT"]
[Termination "Shepherds_Pie won by resignation"]

1. d4 {[%clk 0:04:57.9]} 1... d5 {[%clk 0:04:56.6]} 2. Nf3 {[%clk 0:04:57.2]}
2... Nf6 {[%clk 0:04:53.5]} 3. Bg5 {[%clk 0:04:56.7]} 3... Ne4 {[%clk
0:04:50.8]} 4. Bf4 {[%clk 0:04:54.7]} 4... c5 {[%clk 0:04:49.1]} 5. c3 {[%clk
0:04:53.7]} 5... Qb6 {[%clk 0:04:43.1]} 6. Qb3 {[%clk 0:04:52.3]} 6... Nc6
{[%clk 0:04:38.1]} 7. Qxb6 {[%clk 0:04:50.4]} 7... axb6 {[%clk 0:04:35.8]} 8.
Nbd2 {[%clk 0:04:49.7]} 8... Nxd2 {[%clk 0:04:31.9]} 9. Nxd2 {[%clk 0:04:47.8]}
9... e6 {[%clk 0:04:31]} 10. e3 {[%clk 0:04:44.1]} 10... c4 {[%clk 0:04:29.2]}
11. a3 {[%clk 0:04:42.7]} 11... b5 {[%clk 0:04:27.9]} 12. Rc1 {[%clk 0:04:41.2]}
12... Be7 {[%clk 0:04:25.6]} 13. e4 {[%clk 0:04:40.1]} 13... O-O {[%clk
0:04:23.1]} 14. g3 {[%clk 0:04:38.2]} 14... Bd7 {[%clk 0:04:17.2]} 15. Bg2
{[%clk 0:04:37]} 15... dxe4 {[%clk 0:04:10.6]} 16. Nxe4 {[%clk 0:04:35.8]} 16...
h6 {[%clk 0:03:57]} 17. h4 {[%clk 0:04:33.4]} 17... Rfd8 {[%clk 0:03:50.7]} 18.
Bc7 {[%clk 0:04:31]} 18... Rdc8 {[%clk 0:03:48.8]} 19. Bf4 {[%clk 0:04:30.5]}
19... Be8 {[%clk 0:03:44.2]} 20. Kd2 {[%clk 0:04:23.1]} 20... f5 {[%clk
0:03:34.6]} 21. Nd6 {[%clk 0:04:20.9]} 21... Bxd6 {[%clk 0:03:28]} 22. Bxd6
{[%clk 0:04:20.2]} 22... Bd7 {[%clk 0:03:22.1]} 23. Rhe1 {[%clk 0:04:18.1]}
23... Re8 {[%clk 0:03:20.7]} 24. Re3 {[%clk 0:04:13.5]} 24... Kf7 {[%clk
0:03:18.3]} 25. Rce1 {[%clk 0:04:11.8]} 25... Rg8 {[%clk 0:03:14.6]} 26. d5
{[%clk 0:04:09.4]} 26... Nd8 {[%clk 0:03:09.7]} 27. Bc7 {[%clk 0:04:08]} 27...
Re8 {[%clk 0:03:05.4]} 28. Bxd8 {[%clk 0:04:05.5]} 28... Raxd8 {[%clk
0:03:02.7]} 29. dxe6+ {[%clk 0:04:02.3]} 29... Rxe6 {[%clk 0:02:58.6]} 30. Kc1
{[%clk 0:03:57.7]} 30... Rxe3 {[%clk 0:02:53.6]} 31. Rxe3 {[%clk 0:03:57.2]}
31... Bc6 {[%clk 0:02:51.2]} 32. Bxc6 {[%clk 0:03:55.6]} 32... bxc6 {[%clk
0:02:50]} 33. Re5 {[%clk 0:03:54.5]} 33... Rd5 {[%clk 0:02:45.4]} 34. Rxd5
{[%clk 0:03:49.5]} 34... cxd5 {[%clk 0:02:44]} 35. Kd2 {[%clk 0:03:49.1]} 35...
g5 {[%clk 0:02:41.5]} 36. Ke3 {[%clk 0:03:42.9]} 36... Ke6 {[%clk 0:02:38.7]}
37. f4 {[%clk 0:03:38.3]} 37... gxh4 {[%clk 0:02:33.2]} 38. gxh4 {[%clk
0:03:36.9]} 38... h5 {[%clk 0:02:24.2]} 39. Kf3 {[%clk 0:03:34.5]} 39... Kd6
{[%clk 0:02:16.6]} 40. Ke2 {[%clk 0:03:32.4]} 40... Kc6 {[%clk 0:02:09.6]} 41.
Kd2 {[%clk 0:03:30.7]} 41... Kd6 {[%clk 0:02:02.1]} 42. Ke2 {[%clk 0:03:25.8]}
42... Kc5 {[%clk 0:01:53.1]} 43. Ke3 {[%clk 0:03:24.6]} 43... d4+ {[%clk
0:01:52.2]} 44. cxd4+ {[%clk 0:03:23.1]} 44... Kd5 {[%clk 0:01:51.3]} 45. Kd2
{[%clk 0:03:12.8]} 45... Kxd4 {[%clk 0:01:50.3]} 46. Kc2 {[%clk 0:03:12]} 46...
Ke4 {[%clk 0:01:46.4]} 47. Kc3 {[%clk 0:03:11.4]} 47... Kxf4 {[%clk 0:01:45.5]}
48. Kb4 {[%clk 0:03:10.9]} 48... Kg3 {[%clk 0:01:44.2]} 49. Kxb5 {[%clk
0:03:09.9]} 49... f4 {[%clk 0:01:43.5]} 50. a4 {[%clk 0:03:08.9]} 50... f3
{[%clk 0:01:42.5]} 51. a5 {[%clk 0:03:08.5]} 51... f2 {[%clk 0:01:41.6]} 52. a6
{[%clk 0:03:08]} 52... f1=Q {[%clk 0:01:40.8]} 53. a7 {[%clk 0:03:06.9]} 53...
c3+ {[%clk 0:01:37.9]} 54. Kb4 {[%clk 0:03:06]} 54... cxb2 {[%clk 0:01:35.1]}
55. a8=Q {[%clk 0:03:02.4]} 55... b1=Q+ {[%clk 0:01:33.6]} 56. Kc3 {[%clk
0:03:01.7]} 56... Qbc1+ {[%clk 0:01:28.1]} 57. Kb3 {[%clk 0:02:58.4]} 57... Qd3+
{[%clk 0:01:25]} 58. Kb4 {[%clk 0:02:57]} 58... Qb2+ {[%clk 0:01:23.1]} 59. Kc5
{[%clk 0:02:54.9]} 59... Qdd4+ {[%clk 0:01:22]} 60. Kc6 {[%clk 0:02:49.8]} 60...
Qbc3+ {[%clk 0:01:18]} 61. Kb7 {[%clk 0:02:47.3]} 61... Qdb4+ {[%clk 0:01:16.8]}
0-1

[Event "Live Chess"]
[Site "Chess.com"]
[Date "2023.05.20"]
[Round "-"]
[White "MrBlond89"]
[Black "MarkLim1"]
[Result "0-1"]
[WhiteElo "1412"]
[BlackElo "1655"]
[TimeControl "300"]
[EndTime "13:56:23 PDT"]
[Termination "MarkLim1 won on time"]

1. e4 {[%clk 0:04:59.4]} 1... e6 {[%clk 0:04:58.6]} 2. c4 {[%clk 0:04:57.9]}
2... d5 {[%clk 0:04:57.8]} 3. cxd5 {[%clk 0:04:57.8]} 3... exd5 {[%clk
0:04:57.2]} 4. Qb3 {[%clk 0:04:56.6]} 4... Nf6 {[%clk 0:04:45.1]} 5. e5 {[%clk
0:04:53.4]} 5... Ne4 {[%clk 0:04:43.7]} 6. d4 {[%clk 0:04:46.8]} 6... Be7 {[%clk
0:04:38.1]} 7. Bd3 {[%clk 0:04:39.7]} 7... O-O {[%clk 0:04:36]} 8. Be3 {[%clk
0:04:34]} 8... c5 {[%clk 0:04:33.6]} 9. Nd2 {[%clk 0:04:22.8]} 9... Nxd2 {[%clk
0:04:32.2]} 10. Bxd2 {[%clk 0:04:19.7]} 10... cxd4 {[%clk 0:04:31.3]} 11. Nf3
{[%clk 0:04:14.4]} 11... Nc6 {[%clk 0:04:30.2]} 12. O-O {[%clk 0:04:09.2]} 12...
Bg4 {[%clk 0:04:28.2]} 13. Qxb7 {[%clk 0:03:47.5]} 13... Bd7 {[%clk 0:04:22.1]}
14. Rfe1 {[%clk 0:02:44.9]} 14... Rb8 {[%clk 0:04:20.1]} 15. Qa6 {[%clk
0:02:44]} 15... Rxb2 {[%clk 0:04:18.7]} 16. Re2 {[%clk 0:01:56.2]} 16... Rb6
{[%clk 0:03:40.4]} 17. Qa4 {[%clk 0:01:40.1]} 17... Nxe5 {[%clk 0:03:37.9]} 18.
Qc2 {[%clk 0:01:31.4]} 18... Nxf3+ {[%clk 0:03:29.9]} 19. gxf3 {[%clk
0:01:29.2]} 19... Bd6 {[%clk 0:03:24]} 20. Bxh7+ {[%clk 0:01:27.3]} 20... Kh8
{[%clk 0:03:22.7]} 21. Ba5 {[%clk 0:01:08.3]} 21... Qh4 {[%clk 0:03:17.5]} 22.
f4 {[%clk 0:00:15.7]} 22... Bxf4 {[%clk 0:03:14.8]} 23. f3 {[%clk 0:00:00.6]}
23... Re6 {[%clk 0:02:25.6]} 0-1